bitfinex-derivatives/quotes_ETHF0:USTF0_20250629
["timestamp","ask_amount","ask_price","bid_price","bid_amount"]
[1751213009239,1.01358084,2438.2,2438.1,6.357]
[1751213009444,1.83360084,2438.2,2438.1,31.191]
[1751213011248,0.82008,2438.0,2437.9,2.2702]
[1751213011450,0.82008,2438.0,2437.9,33.4612]
[1751213011646,0.82008,2438.0,2437.9,31.9152]
[1751213012247,0.82008,2438.0,2437.9,0.7242]
[1751213012549,0.82008,2438.0,2437.9,31.9152]
[1751213013146,0.82008,2438.0,2437.9,0.7242]
[1751213013446,0.82008,2438.0,2437.9,31.9152]
[1751213014746,0.82008,2438.0,2437.9,0.7242]
[1751213014947,0.82008,2438.0,2437.9,31.9172]
[1751213015243,0.82008,2438.0,2437.9,0.7242]
[1751213015444,0.82008,2438.0,2437.9,32.73632]
[1751213015952,0.82008,2438.0,2437.9,32.73629]
[1751213016745,0.82008,2438.0,2437.9,1.54429]
[1751213016944,0.82008,2438.0,2437.9,32.73629]
[1751213020054,0.82008,2438.0,2437.9,31.9162]
[1751213020250,2.05008,2438.2,2437.9,31.192]
[1751213020451,2.05008,2438.2,2437.5,0.7028]
[1751213020452,0.82022,2437.6,2437.5,0.7028]
[1751213020754,0.82022,2437.6,2437.5,31.8938]
[1751213021052,0.82022,2437.6,2437.5,32.71404]
[1751213021353,2.7329,2437.9,2437.5,32.71404]
[1751213021354,0.82021,2437.7,2437.6,0.82022]
[1751213021555,0.82017,2437.8,2437.7,0.82017]
[1751213021751,3.2078,2438.0,2437.8,0.82015]
[1751213021944,3.2078,2438.0,2437.9,24.834]
[1751213022143,3.2078,2438.0,2437.9,25.65412]
[1751213022455,0.82003,2438.2,2438.1,0.82003]
[1751213022655,0.82003,2438.2,2438.1,25.65403]
[1751213022852,3.2078,2438.4,2438.1,24.834]
[1751213023156,4.02777,2438.4,2438.3,0.81998]
[1751213023358,5.04120547,2438.4,2438.3,24.833]
[1751213023550,5.04120547,2438.4,2438.3,25.65298]
[1751213023858,5.04120547,2438.4,2438.3,26.38038]
[1751213024453,4.22123547,2438.4,2438.3,26.38038]
[1751213026653,4.22123547,2438.4,2438.3,1.54738]
[1751213026857,5.04118547,2438.4,2438.3,31.187]
[1751213027050,5.04118547,2438.4,2438.3,32.00698]
[1751213027251,5.04118547,2438.4,2438.3,31.187]
[1751213028462,5.04118547,2438.4,2438.3,32.00698]
[1751213028854,5.04118547,2438.4,2438.3,31.187]
[1751213029559,0.82,2438.3,2438.2,0.82002]
[1751213029862,4.02777,2438.4,2438.2,25.65202]
[1751213030059,3.2078,2438.4,2438.3,0.81998]
[1751213030358,4.99154851,2438.4,2438.3,0.81998]
[1751213030752,4.99154851,2438.4,2438.3,25.65198]
[1751213031861,4.17159851,2438.4,2438.3,25.65198]
[1751213032456,4.99154851,2438.4,2438.3,25.65198]
[1751213033964,4.17159851,2438.4,2438.3,25.65198]
[1751213035066,0.96379851,2438.4,2438.3,27.00128]
[1751213037466,1.78374851,2438.4,2438.3,27.00128]
[1751213037972,1.78374851,2438.4,2438.3,25.65198]
[1751213038268,0.96379851,2438.4,2438.2,0.82]
[1751213038469,0.81995,2438.4,2438.3,24.831]
[1751213038865,1.78370133,2438.4,2438.3,24.831]
[1751213040783,1.78370133,2438.4,2438.3,25.65098]
[1751213041782,1.78370133,2438.4,2438.3,24.831]
[1751213043084,1.78370133,2438.4,2438.3,25.65098]
[1751213043385,1.78370133,2438.4,2438.3,24.831]
[1751213044481,1.78370133,2438.4,2438.3,25.65098]
[1751213044783,0.96375133,2438.4,2438.3,25.65098]
[1751213044984,0.96375133,2438.4,2438.3,27.06708]
[1751213045386,1.78370133,2438.4,2438.3,27.06708]
[1751213045880,0.96375133,2438.4,2438.3,27.06708]
[1751213046386,1.78370133,2438.4,2438.3,27.06708]
[1751213046586,0.96375133,2438.4,2438.3,27.06708]
[1751213048188,1.78370133,2438.4,2438.3,27.06708]
[1751213048682,0.96375133,2438.4,2438.3,27.06708]
[1751213048887,4.02767,2438.7,2438.6,0.81988]
[1751213049084,4.17180802,2438.7,2438.6,25.64888]
[1751213049286,3.2078,2438.7,2438.6,25.64888]
[1751213049486,3.2078,2438.7,2438.6,26.37568]
[1751213050086,4.02765,2438.7,2438.6,26.37568]
[1751213050384,4.02765,2438.7,2438.6,32.72968]
[1751213054091,0.81991,2438.5,2438.4,2.45654952]
[1751213054296,0.81995,2438.4,2438.3,9.54444952]
[1751213054496,0.81995,2438.4,2438.3,34.37044952]
[1751213056398,0.81995,2438.4,2438.3,35.19042952]
[1751213056990,0.81995,2438.4,2438.3,32.73388]
[1751213057696,0.81995,2438.4,2438.3,31.9139]
[1751213058201,0.81995,2438.4,2438.3,31.9129]
[1751213058788,0.82002,2438.2,2438.1,5.66434952]
[1751213058990,1.3614,2438.5,2438.1,37.51554952]
[1751213059188,0.82002,2438.2,2438.1,38.33557952]
[1751213059490,0.82002,2438.2,2438.1,37.51554952]
[1751213059799,0.82002,2438.2,2438.1,38.33559952]
[1751213060391,0.82,2438.3,2438.2,0.82001]
[1751213060997,0.82002,2438.2,2438.1,38.33556952]
[1751213061200,0.82002,2438.2,2438.1,41.34914262]
[1751213061401,0.82001,2438.3,2438.2,0.82]
[1751213062794,0.82002,2438.2,2438.1,40.52912262]
[1751213063000,0.82002,2438.2,2438.1,41.34914262]
[1751213065499,0.82002,2438.2,2438.1,10.17114262]
[1751213065704,0.82002,2438.2,2438.1,41.34914262]
[1751213066505,0.82001,2438.3,2438.2,0.81999]
[1751213066897,0.82002,2438.2,2438.1,41.34915262]
[1751213069301,0.81994,2438.5,2438.4,0.81992]
[1751213069500,1.77552391,2438.5,2438.4,28.6594931]
[1751213070598,0.95558391,2438.5,2438.4,28.6594931]
[1751213070798,3.2078,2438.7,2438.6,0.81988]
[1751213071004,4.16344951,2438.7,2438.6,0.81988]
[1751213071204,4.16344951,2438.7,2438.6,35.0114531]
[1751213071604,4.98329951,2438.7,2438.6,3.0135731]
[1751213071897,4.98329951,2438.7,2438.6,31.178]
[1751213072306,0.81988,2438.6,2438.5,1.4908]
[1751213072500,0.81991,2438.5,2438.4,3.0135731]
[1751213072699,1.77555951,2438.5,2438.4,34.1905731]
[1751213072899,0.95564951,2438.5,2438.4,35.0105031]
[1751213073305,1.77555951,2438.5,2438.4,35.0105031]
[1751213073809,0.8199,2438.6,2438.5,0.81991]
[1751213074009,1.76855219,2438.6,2438.5,0.81991]
[1751213074305,1.76855219,2438.6,2438.4,34.1905731]
[1751213074306,0.81991,2438.5,2438.4,34.1905731]
[1751213074508,1.76856219,2438.5,2438.4,34.1905731]
[1751213077309,3.20636219,2438.5,2438.4,34.1905731]
[1751213077611,2.25771,2438.5,2438.4,31.177]
[1751213077907,0.81998,2438.3,2438.2,5.47012262]
[1751213078102,0.81998,2438.3,2438.2,33.63354952]
[1751213078302,0.81998,2438.3,2438.2,8.80854952]
[1751213078509,0.81998,2438.3,2438.2,33.63354952]
[1751213081009,0.81998,2438.3,2438.2,31.177]
[1751213081907,0.81998,2438.3,2438.2,34.1905731]
[1751213082308,1.76877774,2438.3,2438.2,34.1905731]
[1751213084511,1.76877774,2438.3,2438.2,3.0135731]
[1751213084707,0.82002,2438.2,2438.1,7.0573]
[1751213084907,1.76881774,2438.2,2438.1,31.8823]
[1751213089516,1.76881774,2438.2,2438.1,32.70235]
[1751213089912,0.94879774,2438.2,2438.1,32.70235]
[1751213090508,1.77201034,2438.3,2438.1,33.2585]
[1751213090711,0.81998,2438.3,2438.2,5.0838731]
[1751213091010,1.7719287,2438.3,2438.2,5.9038931]
[1751213091214,0.9519487,2438.3,2438.2,5.9038931]
[1751213091513,1.7719287,2438.3,2438.2,5.9038931]
[1751213091913,0.9519487,2438.3,2438.2,5.9038931]
[1751213093117,4.02777,2438.4,2438.3,0.81998]
[1751213093419,4.97965099,2438.4,2438.3,25.64498]
[1751213095214,4.15968099,2438.4,2438.3,25.64498]
[1751213096219,4.15968099,2438.4,2438.3,27.05388]
[1751213097012,0.95188099,2438.4,2438.3,27.05388]
[1751213097918,0.81986,2438.7,2438.6,0.81988]
[1751213098128,1.77164166,2438.7,2438.6,24.824]
[1751213098823,0.95179166,2438.7,2438.6,25.64385]
[1751213099616,1.77164166,2438.7,2438.6,25.64385]
[1751213099810,0.95179166,2438.7,2438.6,25.64385]
[1751213100221,0.95179166,2438.7,2438.6,27.78975]
[1751213100920,0.81985,2438.7,2438.6,27.78975]
[1751213101112,0.81985,2438.7,2438.6,1.55055]
[1751213101318,0.81985,2438.7,2438.6,32.72355]
[1751213102023,3.9413,2439.1,2438.6,31.9037]
[1751213102322,1.77124843,2439.0,2438.9,0.81976]
[1751213102623,1.77124843,2439.0,2438.9,28.6553331]
[1751213103223,1.77124843,2439.0,2438.9,27.8355731]
[1751213107222,1.77124843,2439.0,2438.9,24.822]
[1751213107422,1.77124843,2439.0,2438.7,9.3635731]
[1751213107423,0.81981,2438.8,2438.7,9.3635731]
[1751213107728,0.81981,2438.8,2438.7,34.1835731]
[1751213107927,0.81981,2438.8,2438.7,3.0135731]
[1751213108127,0.81981,2438.8,2438.7,28.6524231]
[1751213108928,0.81986,2438.7,2438.6,0.81986]
[1751213109228,0.81984,2438.8,2438.7,0.81984]
[1751213109423,0.81985,2438.7,2438.6,35.0024331]
[1751213110120,0.81988,2438.6,2438.5,3.2078]
[1751213110329,1.50208,2438.6,2438.5,28.0268]
[1751213110629,1.50208,2438.6,2438.2,6.29013262]
[1751213110630,0.81998,2438.3,2438.2,6.29013262]
[1751213110921,0.81998,2438.3,2438.2,37.45913262]
[1751213111126,0.81998,2438.3,2438.2,36.63912262]
[1751213112226,0.81998,2438.3,2438.2,34.1825731]
[1751213112427,0.81998,2438.3,2438.2,34.1815731]
[1751213113329,0.81998,2438.3,2438.2,35.0015631]
[1751213113631,3.2078,2438.3,2438.0,2.45654952]
[1751213113824,0.82012,2437.9,2437.8,30.48234952]
[1751213114131,0.82012,2437.9,2437.8,31.30249952]
[1751213114333,0.82012,2437.9,2437.8,30.48234952]
[1751213114530,0.82012,2437.9,2437.8,30.48334952]
[1751213115035,0.82012,2437.9,2437.8,31.30349952]
[1751213115237,0.82012,2437.9,2437.8,28.84695]
[1751213115536,0.82012,2437.9,2437.8,31.30349952]
[1751213115924,0.82012,2437.9,2437.8,30.48334952]
[1751213116233,0.82012,2437.9,2437.8,31.30349952]
[1751213116529,0.82012,2437.9,2437.8,28.84695]
[1751213116735,0.82012,2437.9,2437.8,28.0268]
[1751213117939,0.82012,2437.9,2437.8,3.2078]
[1751213118137,0.82012,2437.9,2437.8,24.821]
[1751213118627,2.91162,2437.9,2437.8,24.821]
[1751213124033,2.91162,2437.9,2437.8,25.64115]
[1751213124338,4.0279,2438.0,2437.9,0.82012]
[1751213124539,0.8201,2438.0,2437.9,3.0135731]
[1751213124729,0.8201,2438.0,2437.9,3.7239731]
[1751213124932,0.8201,2438.0,2437.9,4.5440931]
[1751213125137,0.8201,2438.0,2437.9,3.7239731]
[1751213126136,0.8201,2438.0,2437.9,0.7104]
[1751213126342,0.8201,2438.0,2437.9,3.7239731]
[1751213128544,4.662,2438.3,2437.9,3.7239731]
[1751213128738,1.79734716,2438.2,2438.1,3.0135731]
[1751213135446,0.82008,2438.0,2437.9,0.7104]
[1751213135946,4.02788,2438.0,2437.9,25.5344]
[1751213137254,5.00631171,2438.0,2437.9,0.7104]
[1751213137551,5.00631171,2438.0,2437.9,25.5344]
[1751213138153,5.00631171,2438.0,2437.9,0.7104]
[1751213138345,5.00631171,2438.0,2437.9,25.5344]
[1751213138741,1.79851171,2438.0,2437.9,25.5344]
[1751213138941,5.00631171,2438.0,2437.9,25.5344]
[1751213139850,0.82018,2437.7,2437.6,3.0135731]
[1751213140149,0.82018,2437.7,2437.6,34.1865731]
[1751213140760,0.82018,2437.7,2437.6,3.0135731]
[1751213141061,0.82018,2437.7,2437.6,35.0067931]
[1751213141262,0.82018,2437.7,2437.6,35.6871931]
[1751213141655,0.82017,2437.8,2437.7,0.82018]
[1751213144262,0.82018,2437.7,2437.6,38.14371262]
[1751213145058,0.82018,2437.7,2437.6,37.32352262]
[1751213145262,0.82018,2437.7,2437.6,38.14374262]
[1751213146361,1.80213708,2437.7,2437.6,9.48694952]
[1751213146563,1.80213708,2437.7,2437.6,31.8544]
[1751213146751,1.80213708,2437.7,2437.6,0.6804]
[1751213146957,1.80213708,2437.7,2437.6,25.5044]
[1751213148565,1.80213708,2437.7,2437.6,0.6804]
[1751213148760,1.80213708,2437.7,2437.6,25.5044]
[1751213148963,1.80213708,2437.7,2437.6,30.97452262]
[1751213149155,1.80213708,2437.7,2437.6,6.15052262]
[1751213149359,1.80213708,2437.7,2437.6,30.97452262]
[1751213151062,1.80213708,2437.7,2437.6,0.6804]
[1751213151267,1.80213708,2437.7,2437.6,25.5044]
[1751213154062,1.80213708,2437.7,2437.6,0.6804]
[1751213154262,0.82025,2437.5,2437.4,2.45654952]
[1751213154463,0.82025,2437.5,2437.4,27.28054952]
[1751213155468,1.8015138,2437.5,2437.4,24.824]
[1751213155667,0.82028,2437.4,2437.3,12.63844262]
[1751213155868,0.82028,2437.4,2437.3,36.64312262]
[1751213157464,0.82028,2437.4,2437.3,37.31312262]
[1751213158261,0.82028,2437.4,2437.3,34.8565731]
[1751213158760,0.82028,2437.4,2437.3,35.6768931]
[1751213158956,2.7459,2437.6,2437.3,35.6768931]
[1751213158957,1.53443,2437.6,2437.5,0.82025]
[1751213159167,1.53443,2437.6,2437.5,24.825]
[1751213159168,2.51544467,2437.6,2437.5,24.825]
[1751213160970,0.98101467,2437.6,2437.5,28.6588231]
[1751213161969,1.80123467,2437.6,2437.5,28.6588231]
[1751213162969,1.80123467,2437.6,2437.5,25.64525]
[1751213163171,1.80123467,2437.6,2437.5,27.8385731]
[1751213166262,1.80123467,2437.6,2437.5,28.6588231]
[1751213166464,1.80123467,2437.6,2437.5,24.825]
[1751213167670,1.80123467,2437.6,2437.5,25.64525]
[1751213169170,1.80123467,2437.6,2437.5,24.825]
[1751213171267,1.80123467,2437.6,2437.5,25.64525]
[1751213176470,0.98101467,2437.6,2437.5,25.64525]
[1751213176664,4.0279,2438.0,2437.9,0.82012]
[1751213176863,5.00946814,2438.0,2437.9,25.64312]
[1751213177273,5.00946814,2438.0,2437.9,26.31542]
[1751213177967,4.18936814,2438.0,2437.9,26.31542]
[1751213178368,4.18936814,2438.0,2437.9,27.69572]
[1751213178569,3.2078,2438.3,2438.2,0.82002]
[1751213178873,4.18197262,2438.3,2438.2,25.64202]
[1751213179369,5.00197262,2438.3,2438.2,25.64202]
[1751213179567,4.18197262,2438.3,2438.2,25.64202]
[1751213179966,0.97417262,2438.3,2438.2,27.06792]
[1751213180672,1.79415262,2438.3,2438.2,27.06792]
[1751213181173,0.81998,2438.3,2438.2,27.06792]
[1751213181371,3.2078,2438.6,2438.2,27.06792]
[1751213181372,0.81997,2438.4,2438.2,27.06792]
[1751213181571,0.81998,2438.3,2438.2,26.2479]
[1751213181778,0.81998,2438.3,2438.2,32.5929]
[1751213182576,0.81998,2438.3,2438.2,33.41292]
[1751213184166,0.81996,2438.4,2438.3,0.81996]
[1751213184372,3.2078,2438.6,2438.3,3.0135731]
[1751213184373,1.79198755,2438.5,2438.3,3.0135731]
[1751213184568,0.81993,2438.5,2438.4,27.8315731]
[1751213189079,0.81993,2438.5,2438.4,24.818]
[1751213191877,0.81993,2438.5,2438.4,25.5172]
[1751213192978,0.81991,2438.5,2438.4,29.3507131]
[1751213193485,0.6685,2438.7,2438.4,29.3507131]
[1751213193486,0.81986,2438.7,2438.6,0.81988]
[1751213193674,0.81986,2438.7,2438.6,28.6474531]
[1751213193881,0.81985,2438.7,2438.6,28.6474331]
[1751213194583,0.81984,2438.8,2438.7,0.81983]
[1751213194784,4.0276,2438.9,2438.8,0.81981]
[1751213194985,4.0276,2438.9,2438.8,24.812]
[1751213198689,3.2078,2439.2,2439.1,0.81971]
[1751213198892,0.81966,2439.3,2439.2,0.81966]
[1751213199083,3.2078,2439.5,2439.2,3.0135731]
[1751213199291,0.81956,2439.6,2439.5,0.81958]
[1751213199483,1.78788904,2439.6,2439.5,28.6431531]
[1751213199679,0.96832904,2439.6,2439.5,28.6431531]
[1751213199884,1.78786904,2439.6,2439.5,28.6431531]
[1751213200390,0.81954,2439.6,2439.5,27.8235731]
[1751213200891,0.81954,2439.6,2439.5,28.6431531]
[1751213201694,0.81954,2439.6,2439.5,27.8235731]
[1751213203389,0.81954,2439.6,2439.2,3.2078]
[1751213203594,0.81965,2439.3,2439.2,24.806]
[1751213204595,0.81975,2439.0,2438.8,4.5643731]
[1751213204784,0.81975,2439.0,2438.9,31.96578]
[1751213204989,0.81975,2439.0,2438.9,31.146]
[1751213205895,0.81975,2439.0,2438.9,31.96578]
[1751213206395,0.81975,2439.0,2438.9,31.146]
[1751213206595,0.81975,2439.0,2438.9,0.81978]
[1751213206788,0.81975,2439.0,2438.9,31.146]
[1751213208694,0.81975,2439.0,2438.9,0.81978]
[1751213208896,0.81975,2439.0,2438.9,31.96478]
[1751213209702,0.81975,2439.0,2438.9,7.16178]
[1751213209997,0.81978,2438.9,2438.8,5.1904731]
[1751213210302,0.81978,2438.9,2438.8,31.875]
[1751213210602,0.81978,2438.9,2438.8,32.69481]
[1751213211102,0.81977,2439.0,2438.8,35.7083831]
[1751213211300,0.81977,2439.0,2438.8,37.0547831]
[1751213211994,0.81977,2439.0,2438.9,0.6734]
[1751213213801,0.81977,2439.0,2438.9,31.8154]
[1751213217006,0.81977,2439.0,2438.9,32.63518]
[1751213218506,0.81977,2439.0,2438.9,31.8154]
[1751213220209,0.81977,2439.0,2438.9,7.0134]
[1751213220403,0.81977,2439.0,2438.9,31.8154]
[1751213221113,0.81977,2439.0,2438.9,32.63518]
[1751213221405,0.81977,2439.0,2438.9,31.8154]
[1751213224514,1.78874117,2439.0,2438.9,31.8154]
[1751213225410,1.78872117,2439.0,2438.9,32.63518]
[1751213225812,0.81975,2439.0,2438.9,32.63518]
[1751213226912,0.81975,2439.0,2438.9,31.8154]
[1751213227413,1.78892412,2439.0,2438.9,31.8154]
[1751213229816,0.96917412,2439.0,2438.9,40.6487531]
[1751213230013,3.2078,2439.6,2438.9,38.1911]
[1751213230317,3.7423731,2439.5,2439.1,0.81969]
[1751213230514,0.81971,2439.1,2439.0,3.27589239]
[1751213230715,3.2078,2439.2,2438.9,7.0134]
[1751213230913,0.81973,2439.1,2439.0,25.65073]
[1751213231113,4.6449,2439.2,2439.0,2.45641539]
[1751213231420,0.81971,2439.1,2439.0,3.27615539]
[1751213231611,0.81971,2439.1,2439.0,28.11215539]
[1751213231813,0.81971,2439.1,2439.0,24.836]
[1751213232117,0.81975,2439.0,2438.9,7.83316]
[1751213232318,0.81973,2439.1,2439.0,0.81975]
[1751213232508,0.81973,2439.1,2439.0,25.65375]
[1751213232708,0.81973,2439.1,2439.0,24.834]
[1751213232913,2.16113,2439.1,2439.0,24.834]
[1751213234336,0.81978,2438.9,2438.8,7.15979]
[1751213234521,0.81977,2439.0,2438.8,31.98979]
[1751213234724,0.81981,2438.8,2438.7,9.46401539]
[1751213234916,0.81981,2438.8,2438.7,31.8366]
[1751213235317,3.2078,2438.9,2438.7,32.65643]
[1751213235719,0.81981,2438.8,2438.7,32.65643]
[1751213236018,0.81981,2438.8,2438.7,31.8366]
[1751213237118,0.81981,2438.8,2438.7,0.6676]
[1751213237424,0.81988,2438.6,2438.5,3.27631539]
[1751213237623,0.81988,2438.6,2438.5,35.17701539]
[1751213237818,0.81988,2438.6,2438.5,35.18101539]
[1751213238023,0.81988,2438.6,2438.5,34.36011539]
[1751213238213,0.81988,2438.6,2438.5,31.9037]
[1751213239219,0.81988,2438.6,2438.5,32.72361]
[1751213241426,0.81988,2438.6,2438.5,35.7371831]
[1751213241629,0.81987,2438.7,2438.6,0.81987]
[1751213241925,0.81988,2438.6,2438.5,35.7371631]
[1751213243429,0.6986,2438.8,2438.5,34.9172731]
[1751213243624,0.81988,2438.6,2438.5,35.7371731]
[1751213244123,0.81988,2438.6,2438.5,29.3971731]
[1751213244326,0.81988,2438.6,2438.5,25.5557]
[1751213245231,0.81988,2438.6,2438.5,26.37561]
[1751213245430,0.81988,2438.6,2438.5,1.55261]
[1751213245631,0.81988,2438.6,2438.5,26.37561]
[1751213245830,0.6986,2438.8,2438.6,0.81988]
[1751213245831,0.81987,2438.7,2438.6,0.81988]
[1751213246219,0.81987,2438.7,2438.5,29.3891631]
[1751213246737,0.81988,2438.6,2438.5,29.3891631]
[1751213247429,0.81988,2438.6,2438.5,28.5692731]
[1751213247735,0.81988,2438.6,2438.5,29.3891831]
[1751213247935,0.81988,2438.6,2438.5,28.5692731]
[1751213248335,0.81988,2438.6,2438.5,25.5557]
[1751213249231,0.81988,2438.6,2438.5,0.7327]
[1751213249443,0.81995,2438.4,2438.3,6.38291539]
[1751213249741,0.81995,2438.4,2438.3,3.9265]
[1751213250047,0.81995,2438.4,2438.3,28.7425]
[1751213250345,0.81998,2438.3,2438.2,2.45641539]
[1751213250541,4.02778,2438.3,2438.2,2.45641539]
[1751213250743,0.82005,2438.1,2438.0,2.45641539]
[1751213251042,0.82005,2438.1,2438.0,27.27641539]
[1751213251242,0.82005,2438.1,2438.0,24.82]
[1751213251546,0.82008,2438.0,2437.9,6.352]
[1751213251748,4.02788,2438.0,2437.9,31.177]
[1751213252247,4.02788,2438.0,2437.8,3.17511539]
[1751213252248,0.82012,2437.9,2437.8,3.17511539]
[1751213252442,0.82012,2437.9,2437.8,26.36385]
[1751213253448,0.82012,2437.9,2437.8,25.5437]
[1751213253946,0.82012,2437.9,2437.8,0.7187]
[1751213254144,0.82018,2437.7,2437.6,7.0767]
[1751213254344,0.82018,2437.7,2437.6,33.45142]
[1751213254951,0.82017,2437.8,2437.6,33.45142]
[1751213255152,0.82015,2437.9,2437.7,3.8337531]
[1751213255354,0.82015,2437.9,2437.8,24.826]
[1751213258554,0.82015,2437.9,2437.8,25.64615]
[1751213258753,4.02789,2438.0,2437.8,27.8365731]
[1751213258954,0.82012,2437.9,2437.8,28.6567031]
[1751213259647,4.02791,2438.0,2437.8,28.6567031]
[1751213259847,0.82012,2437.9,2437.8,28.6567031]
[1751213262054,3.2078,2438.0,2437.9,0.82012]
[1751213262252,3.2078,2438.0,2437.8,27.8365731]
[1751213262253,3.2078,2438.3,2438.2,0.82002]
[1751213262559,4.99407738,2438.3,2438.2,3.0135731]
[1751213262945,4.99407738,2438.3,2438.0,27.8325731]
[1751213262946,0.82005,2438.1,2438.0,27.8325731]
[1751213263156,0.82012,2437.9,2437.8,3.0135731]
[1751213263360,0.82012,2437.9,2437.8,27.8365731]
[1751213263556,0.82012,2437.9,2437.8,28.6567231]
[1751213264155,0.82012,2437.9,2437.8,27.8365731]
[1751213264350,0.82012,2437.9,2437.8,3.0135731]
[1751213264551,0.82012,2437.9,2437.8,27.8395731]
[1751213265152,0.82012,2437.9,2437.8,24.826]
[1751213265453,0.82018,2437.7,2437.6,10.9114631]
[1751213265652,0.82018,2437.7,2437.6,34.9162731]
[1751213266054,0.82018,2437.7,2437.6,7.0777]
[1751213266249,4.02798,2437.7,2437.6,31.9027]
[1751213266455,4.02798,2437.7,2437.6,34.9162731]
[1751213267465,4.02798,2437.7,2437.6,35.7364931]
[1751213267662,4.02798,2437.7,2437.6,25.5507]
[1751213267864,4.02798,2437.7,2437.6,28.5642731]
[1751213268559,4.02798,2437.7,2437.6,29.3844931]
[1751213269464,4.02798,2437.7,2437.6,28.5642731]
[1751213270663,4.02798,2437.7,2437.6,3.7382731]
[1751213270862,4.02798,2437.7,2437.6,28.5572731]
[1751213271055,0.82028,2437.4,2437.3,47.231]
[1751213271256,0.82028,2437.4,2437.3,56.5985731]
[1751213271465,0.82028,2437.4,2437.3,81.4165731]
[1751213272470,0.82028,2437.4,2437.3,35.0068931]
[1751213273163,0.82028,2437.4,2437.3,9.3675731]
[1751213273364,0.82028,2437.4,2437.3,34.1865731]
[1751213273662,0.82028,2437.4,2437.3,35.0068931]
[1751213273960,0.82028,2437.4,2437.3,34.1865731]
[1751213274156,0.82028,2437.4,2437.3,9.3675731]
[1751213274559,0.82028,2437.4,2437.3,34.1835731]
[1751213275460,0.82032,2437.3,2437.2,0.6717]
[1751213275767,0.82042,2437.0,2436.9,10.1780131]
[1751213275964,0.82042,2437.0,2436.9,36.9989131]
[1751213276262,0.82049,2436.8,2436.7,2.45641539]
[1751213276562,0.82054,2436.7,2436.6,24.849]
[1751213278161,3.2078,2436.8,2436.7,0.82052]
[1751213278558,0.82043,2437.0,2436.8,0.82046]
[1751213278863,0.82043,2437.0,2436.9,27.8615731]
[1751213279059,0.82043,2437.0,2436.9,29.1991731]
[1751213279257,4.0282,2437.1,2436.9,29.1991731]
[1751213280164,0.82042,2437.0,2436.9,29.1991731]
[1751213280367,0.82042,2437.0,2436.9,30.0196231]
[1751213280862,0.82042,2437.0,2436.9,29.1991731]
[1751213281067,0.82042,2437.0,2436.9,27.8615731]
[1751213281257,0.82042,2437.0,2436.9,27.8675731]
[1751213281456,3.2078,2437.1,2436.7,0.8205]
[1751213281457,0.8205,2436.8,2436.7,3.0135731]
[1751213281657,0.8205,2436.8,2436.7,27.8665731]
[1751213282263,0.8205,2436.8,2436.7,3.7463731]
[1751213282460,0.8205,2436.8,2436.7,29.4228931]
[1751213282964,0.8205,2436.8,2436.7,28.6023731]
[1751213283563,0.7145,2436.9,2436.5,0.6685]
[1751213283768,0.82055,2436.6,2436.5,0.6685]
[1751213284065,0.82055,2436.6,2436.5,25.5205]
[1751213285759,0.82055,2436.6,2436.5,0.6685]
[1751213285956,0.82059,2436.5,2436.4,0.6764]
[1751213286272,1.51019,2436.5,2436.4,25.5334]
[1751213286659,1.51019,2436.5,2436.4,25.5344]
[1751213287264,0.82057,2436.6,2436.4,26.35502]
[1751213287464,0.82059,2436.5,2436.4,3.6899731]
[1751213287666,0.82059,2436.5,2436.4,28.5459731]
[1751213287864,0.82059,2436.5,2436.4,29.3665931]
[1751213288068,0.82058,2436.6,2436.4,29.3665831]
[1751213288568,0.82059,2436.5,2436.4,28.5459731]
[1751213291069,0.82065,2436.3,2436.2,9.3595731]
[1751213291368,0.82065,2436.3,2436.2,35.7631631]
[1751213291561,0.82065,2436.3,2436.2,34.9424731]
[1751213291869,0.82064,2436.4,2436.3,0.82065]
[1751213292069,3.39016,2436.7,2436.2,34.9424731]
[1751213292070,0.82061,2436.5,2436.4,0.82062]
[1751213292371,0.82062,2436.4,2436.3,3.0135731]
[1751213292573,0.82062,2436.4,2436.3,27.8645731]
[1751213293163,0.8206,2436.5,2436.4,0.82061]
[1751213293468,4.5862,2436.8,2436.3,29.9161931]
[1751213293672,4.02829,2436.8,2436.7,3.0135731]
[1751213294071,4.02829,2436.8,2436.7,3.6821731]
[1751213295366,3.2078,2436.8,2436.7,4.5026931]
[1751213295561,3.2078,2437.1,2436.8,0.82046]
[1751213295762,3.2078,2437.1,2436.7,1.3328]
[1751213295973,0.82048,2436.8,2436.7,24.868]
[1751213296970,0.82048,2436.8,2436.7,27.8815731]
[1751213297169,0.82047,2436.9,2436.8,0.82049]
[1751213297678,0.82047,2436.9,2436.8,0.6642]
[1751213298578,0.82047,2436.9,2436.8,1.48469]
[1751213299271,0.82047,2436.9,2436.8,0.6642]
[1751213299877,0.82045,2437.0,2436.8,0.6642]
[1751213300076,3.2078,2437.1,2437.0,0.82042]
[1751213300279,3.2078,2437.1,2437.0,25.70642]
[1751213300581,3.2078,2437.1,2437.0,27.06602]
[1751213303079,0.82033,2437.3,2437.0,26.2456]
[1751213303274,0.8203,2437.4,2437.3,0.8203]
[1751213303584,4.02807,2437.5,2437.4,0.82028]
[1751213303884,4.987839,2437.5,2437.4,0.82028]
[1751213304084,0.82028,2437.4,2437.3,29.4439631]
[1751213304684,0.82028,2437.4,2437.3,25.6101]
[1751213304872,0.82028,2437.4,2437.3,28.6236731]
[1751213306386,0.82028,2437.4,2437.3,29.4439931]
[1751213306881,4.02807,2437.5,2437.4,0.82028]
[1751213307579,4.02807,2437.5,2437.4,1.4524]
[1751213308382,4.02808,2437.5,2437.3,28.6236731]
[1751213308579,0.82028,2437.4,2437.3,30.0760731]
[1751213309282,0.82028,2437.4,2437.3,30.8963831]
[1751213309479,4.02808,2437.5,2437.3,30.8963731]
[1751213309980,0.82028,2437.4,2437.3,30.8963731]